bitfinex/quotes_ETHUSD_20250925
["timestamp","ask_amount","ask_price","bid_price","bid_amount"]
[1758804469095,5.321,3996.1,3996.0,0.3609]
[1758804469298,0.001,3996.5,3996.0,0.8162]
[1758804469452,0.757,3996.4,3996.1,0.2361]
[1758804469766,2.087,3996.5,3996.4,2.50225202]
[1758804469767,0.001,3996.5,3996.4,2.50225202]
[1758804469960,0.001,3996.5,3996.4,3.21867454]
[1758804470284,0.001,3996.5,3996.4,4.57023634]
[1758804470590,0.001,3996.5,3996.4,7.59525886]
[1758804470769,0.001,3996.5,3996.4,7.57023634]
[1758804471555,0.001,3996.5,3996.4,6.98565202]
[1758804471864,1.909,3997.1,3996.5,0.792]
[1758804471865,5.313,3997.1,3996.5,0.792]
[1758804472075,5.313,3997.1,3996.6,0.2361]
[1758804472289,7.81481925,3997.1,3996.0,0.2361]
[1758804472485,2.5019462,3996.9,3996.0,0.2361]
[1758804472666,2.5019462,3996.9,3996.1,2.50243987]
[1758804472872,2.5019462,3996.9,3996.0,0.85549576]
[1758804473082,2.5019462,3996.9,3996.2,2.50237634]
[1758804473462,5.313,3997.1,3996.5,2.50217163]
[1758804473959,7.81482013,3997.1,3996.4,2.50223777]
[1758804474300,2.50200624,3996.8,3996.3,0.2361]
[1758804474453,2.086,3997.5,3996.5,0.02502189]
[1758804474659,5.307,3997.4,3996.9,2.50188939]
[1758804474884,5.307,3997.4,3997.0,0.6914]
[1758804475161,2.50150521,3997.6,3997.0,0.6914]
[1758804475162,3.001,3998.2,3997.0,0.6914]
[1758804475359,7.392,3997.7,3997.1,0.2361]
[1758804475665,2.086,3997.7,3997.1,3.0847491]
[1758804475864,7.3892,3997.7,3997.2,2.73785122]
[1758804476066,7.3892,3997.7,3997.3,0.71641688]
[1758804476273,0.001,3998.2,3997.4,2.50162605]
[1758804476459,0.001,3998.2,3997.7,2.50143832]
[1758804476654,1.75,3998.2,3997.7,3.0733786]
[1758804476859,1.75,3998.2,3997.7,3.7647786]
[1758804477062,0.001,3998.2,3997.7,3.7647786]
[1758804477373,0.001,3998.2,3997.7,1.26334028]
[1758804477569,0.001,3998.2,3997.7,0.2361]
[1758804478067,0.001,3998.2,3997.0,1.4834]
[1758804478273,0.001,3998.2,3997.5,2.50150499]
[1758804478599,2.50123188,3998.1,3997.1,0.792]
[1758804478899,2.50128304,3998.0,3997.3,2.50168728]
[1758804479096,2.50128304,3998.0,3997.1,0.792]
[1758804479296,0.001,3998.2,3997.3,0.792]
[1758804479463,0.001,3998.2,3997.6,2.5014857]
[1758804479663,0.001,3998.2,3997.7,0.02501438]
[1758804479879,0.001,3998.2,3997.7,0.6914]
[1758804480092,2.50214385,3998.2,3997.3,1.0281]
[1758804480283,0.001,3998.2,3997.7,0.1248]
[1758804480480,2.50237575,3997.8,3997.7,0.1248]
[1758804480800,0.001,3997.8,3997.7,0.1248]
[1758804480999,2.50237575,3997.8,3997.7,0.1248]
[1758804481363,0.001,3997.8,3997.3,2.50166241]
[1758804481596,0.001,3997.8,3997.4,0.2361]
[1758804481775,2.50238944,3997.8,3996.9,2.70193117]
[1758804481986,2.50144139,3997.7,3996.9,0.2]
[1758804482184,2.50155356,3997.6,3996.9,0.2]
[1758804482574,0.4607,3997.8,3996.9,0.2]
[1758804482901,2.9620867,3997.8,3996.9,0.2]
[1758804483101,2.50154994,3997.6,3996.9,0.2]
[1758804483288,2.5014547,3997.7,3996.9,0.2]
[1758804483469,2.50151802,3997.6,3996.9,0.53934498]
[1758804483670,0.4594,3997.5,3996.9,0.2]
[1758804483865,2.50183102,3997.1,3996.9,0.2]
[1758804484102,10.5800764,3997.0,3996.9,0.2]
[1758804484618,13.5800764,3997.0,3996.9,0.2]
[1758804485274,2.50250431,3996.0,3995.4,0.2303]
[1758804485581,5.281,3995.9,3995.5,0.4576]
[1758804485765,5.281,3996.0,3995.4,0.2303]
[1758804485973,5.281,3996.0,3993.9,3.0]
[1758804485974,5.281,3995.9,3994.9,0.2303]
[1758804486274,2.50289218,3995.4,3994.9,0.2303]
[1758804486490,5.28,3995.3,3994.9,0.2303]
[1758804486808,0.4594,3995.9,3994.4,2.50348985]
[1758804486969,0.4594,3995.9,3993.6,3.0]
[1758804486970,2.50281022,3995.6,3995.0,0.2303]
[1758804487169,0.2488,3996.0,3995.0,0.2303]
[1758804487170,0.2488,3996.0,3995.1,2.50300535]
[1758804487366,11.06225864,3997.5,3995.3,2.50293283]
[1758804487367,0.4594,3997.0,3995.3,2.50293283]
[1758804487580,2.50218279,3996.6,3995.4,0.71292878]
[1758804487875,2.50230451,3996.4,3995.5,0.6879]
[1758804488096,7.362,3996.5,3995.5,0.6879]
[1758804488282,7.362,3996.5,3995.5,0.56937683]
[1758804488283,2.50244475,3996.1,3995.5,0.56937683]
[1758804488483,2.50261721,3995.9,3995.1,0.2303]
[1758804488703,2.50286998,3995.5,3994.7,0.2303]
[1758804488876,2.50298487,3995.3,3994.2,2.50358178]
[1758804489075,2.50311184,3995.1,3994.3,0.52376294]
[1758804489403,2.50306625,3995.1,3994.2,0.4576]
[1758804489819,0.4594,3995.0,3993.0,0.4576]
[1758804490020,0.2488,3994.9,3993.0,2.96198265]
[1758804490323,2.50355216,3994.4,3993.4,3.0]
[1758804490518,9.86056801,3994.3,3993.3,3.0]
[1758804490698,9.86056801,3994.3,3993.5,2.50406682]
[1758804490699,7.357,3994.3,3993.5,2.50406682]
[1758804491024,9.86057211,3994.3,3993.4,3.30786942]
[1758804491221,7.357,3994.3,3993.4,3.30787228]
[1758804491422,9.86056758,3994.3,3994.2,0.1248]
[1758804491621,10.54016758,3994.3,3994.2,0.1248]
[1758804491822,3.18316758,3994.3,3994.2,0.1248]
[1758804492042,0.4391,3994.9,3994.2,0.1248]
[1758804492320,3.0,3995.6,3994.3,0.249]
[1758804492321,5.268,3994.8,3994.3,0.249]
[1758804492486,0.4391,3995.7,3994.8,0.1248]
[1758804492686,0.39257403,3996.0,3995.1,2.50301098]
[1758804492920,2.5027597,3995.6,3995.1,0.54472429]
[1758804493133,7.352,3995.9,3994.6,0.249]
[1758804493134,0.4391,3995.5,3994.6,0.249]
[1758804493283,0.39257403,3996.0,3995.7,0.1248]
[1758804493284,3.0,3996.0,3995.7,0.1248]
[1758804493487,7.351,3995.9,3995.4,0.1248]
[1758804493713,2.50267365,3995.8,3995.1,0.249]
[1758804493920,7.351,3995.9,3995.8,0.1248]
[1758804494324,9.85356512,3995.9,3995.8,0.1248]
[1758804495190,8.0306,3995.9,3995.8,0.1248]
[1758804495396,9.85356512,3995.9,3995.8,0.1248]
[1758804495791,13.53316512,3995.9,3995.8,0.1248]
[1758804496012,13.53316512,3995.9,3992.2,0.002]
[1758804496013,2.50267481,3995.8,3994.3,0.6782]
[1758804496214,2.085,3995.7,3994.4,0.59221744]
[1758804496414,2.5029263,3995.4,3994.5,2.50343921]
[1758804496736,5.26,3995.3,3994.4,0.5671824]
[1758804496890,7.76294426,3995.3,3994.4,2.75245966]
[1758804497091,5.26,3995.3,3995.2,0.1248]
[1758804497298,5.258,3995.3,3995.2,2.87676221]
[1758804497531,5.258,3995.3,3995.2,3.30596221]
[1758804497692,5.258,3995.3,3995.2,0.803]
[1758804497899,5.258,3995.3,3995.2,0.3738]
[1758804498148,5.258,3995.3,3995.2,0.1248]
[1758804498851,7.76094095,3995.3,3995.2,0.1248]
[1758804498997,8.44054095,3995.3,3995.2,0.1248]
[1758804499523,7.76094095,3995.3,3995.2,0.1248]
[1758804499725,0.2405,3995.7,3995.2,0.1248]
[1758804499952,7.339,3995.6,3995.1,0.249]
[1758804500256,7.339,3995.6,3994.9,0.4292]
[1758804500552,7.339,3995.6,3995.5,0.1248]
[1758804500750,0.2405,3996.2,3995.5,0.1248]
[1758804500955,3.0,3996.0,3995.1,0.249]
[1758804501128,0.4391,3996.4,3996.1,0.1248]
[1758804501332,7.3352,3996.3,3995.6,2.5026911]
[1758804501527,0.39251453,3996.5,3995.8,2.50258086]
[1758804501835,0.39251453,3996.5,3996.4,0.1248]
[1758804502041,7.72651453,3996.5,3996.4,0.1248]
[1758804502445,0.39251453,3996.5,3996.4,2.62705202]
[1758804502649,0.39251453,3996.5,3996.4,4.12227454]
[1758804502859,0.39251453,3996.5,3996.4,4.63491665]
[1758804503027,0.39251453,3996.5,3996.4,7.65993917]
[1758804503226,0.39251453,3996.5,3996.4,7.63491665]
[1758804503453,1e-08,3996.5,3996.4,7.63491665]
[1758804503821,0.001,3997.8,3997.7,2.50143832]
[1758804504257,0.001,3997.8,3997.7,3.17963832]
[1758804504440,0.001,3997.8,3997.7,4.47443591]
[1758804505564,0.001,3997.8,3997.7,4.49945029]
[1758804505853,0.001,3997.8,3997.7,7.47443591]
[1758804506536,0.001,3997.8,3997.7,12.71243591]
[1758804507454,13.34861996,4001.6,3997.9,0.792]
[1758804507653,2.087,4000.2,3998.2,0.792]
[1758804507927,2.50013774,3999.8,3998.4,3.0]
[1758804508161,0.6796,3999.7,3998.4,0.792]
[1758804508463,2.50038915,3999.4,3998.6,0.792]
[1758804508667,2.50032832,3999.5,3998.4,0.792]
[1758804508828,2.3255,3999.4,3998.5,2.50088064]
[1758804509026,2.50050491,3999.2,3998.4,2.50098834]
[1758804509244,2.50062515,3999.0,3998.2,2.50112424]
[1758804509660,2.50077537,3998.8,3997.7,0.50279759]
[1758804509826,0.4391,3998.7,3996.2,2.50237704]
[1758804510026,4.82641286,3998.6,3996.7,2.5020642]
[1758804510259,2.50093785,3998.5,3997.5,2.50152798]
[1758804510559,2.50093785,3998.5,3996.8,3.20519641]
[1758804510560,5.229,3998.4,3997.6,2.52649919]
[1758804510732,2.5010842,3998.3,3997.2,2.50175122]
[1758804510925,2.5010842,3998.3,3997.1,3.0]
[1758804511125,0.2405,3998.2,3997.3,2.50164096]
[1758804511330,0.2405,3998.2,3997.1,0.36782]
[1758804511538,0.2405,3998.2,3997.2,3.0]
[1758804511739,2.50120963,3998.1,3997.2,2.50171472]
[1758804511943,0.4391,3998.0,3997.3,2.52665335]
[1758804512151,0.4391,3998.0,3997.4,2.50162559]
[1758804512343,7.308,3997.9,3997.5,2.52657311]
[1758804512665,2.084,3998.2,3997.7,0.792]
[1758804512864,2.084,3998.2,3998.0,2.50125062]
[1758804513027,2.084,3998.2,3997.5,0.50282581]
[1758804513366,2.084,3998.2,3998.1,0.1248]
[1758804513927,3.0,3999.6,3998.2,0.792]
[1758804514150,0.49393229,4002.1,3997.8,0.02501375]
[1758804514151,3.0,3999.4,3997.8,0.792]
[1758804514355,5.1745,3999.3,3997.8,0.81701375]
[1758804514564,0.30779862,4000.6,3997.8,0.81701375]
[1758804514565,0.2405,3999.7,3999.3,0.1248]
[1758804514766,0.4391,3999.8,3999.3,0.1248]
[1758804514983,0.4391,3999.8,3999.6,0.1248]
[1758804515298,2.93928751,3999.7,3999.6,0.1248]
[1758804515447,3.17978751,3999.7,3999.6,0.1248]
[1758804515983,0.1248,4000.3,3999.6,0.1248]
[1758804516185,2.50012824,3999.8,3999.6,0.1248]
[1758804516501,2.50012824,3999.8,3998.5,0.4292]
[1758804516502,0.6796,3999.7,3998.2,0.792]
[1758804516651,2.74062903,3999.8,3998.4,0.792]
[1758804516845,2.74062903,3999.8,3998.3,0.6782]
[1758804516846,0.2405,3999.8,3998.5,0.50022937]
[1758804517150,0.2405,3999.8,3998.5,0.27400937]
[1758804517380,2.50018751,3999.7,3998.6,2.5008753]
[1758804517547,2.50025711,3999.6,3998.7,2.5008028]
[1758804517749,0.2405,3999.8,3998.5,0.249]
[1758804517948,0.2405,3999.8,3999.0,2.50057095]
[1758804518150,2.50020088,3999.7,3999.0,2.50057095]
[1758804518454,2.50019149,3999.7,3999.0,2.50062466]
[1758804518662,2.50019149,3999.7,3997.4,2.50158442]
[1758804518663,3.0,4000.4,3999.1,0.25006247]
[1758804518981,1.0,4003.2,4000.2,2.49984541]
[1758804518982,0.4391,4001.2,4000.2,2.49984541]
[1758804519187,3.0,4001.1,3999.9,0.249]
[1758804519371,2.49953854,4000.8,3999.9,0.249]
[1758804519684,2.4998096,4000.4,3998.9,0.792]
[1758804519903,13.34861996,4001.3,3999.2,2.50049052]
[1758804519904,0.6796,4000.3,3999.2,2.50049052]
[1758804520067,0.6796,4000.2,3999.4,2.50033189]
[1758804520393,0.6796,4000.2,3999.0,0.35417906]
[1758804520394,2.50015976,3999.8,3999.0,0.35417906]
[1758804520595,0.4391,3999.9,3998.8,0.249]
[1758804520885,2.73026764,3999.8,3998.3,0.2375]
[1758804521090,2.73026764,3999.8,3999.1,2.50051508]
[1758804521256,2.49883424,4001.9,3999.2,0.6755]
[1758804521591,2.4993529,4001.1,3999.9,0.792]
[1758804521763,0.6881,4001.1,4000.0,2.52498257]
[1758804522079,0.6881,4001.1,4000.3,2.49979124]
[1758804522287,3.0,4001.0,4000.1,2.4999186]
[1758804522457,2.49947944,4000.9,4000.1,2.4999186]
[1758804522856,3.0,4001.0,4000.1,2.4999375]
[1758804523081,2.49963762,4000.6,3999.3,0.6755]
[1758804523292,2.49963762,4000.6,3999.4,0.61760148]
[1758804523471,2.49992825,4000.2,3999.1,2.50050865]
[1758804523677,2.49992825,4000.2,3999.4,2.50032652]
[1758804523875,2.49992825,4000.2,3999.4,2.50036359]
[1758804524094,3.18780539,4000.5,3999.7,2.50017875]
[1758804524302,0.2301,4001.1,4000.3,2.49976632]
[1758804524469,0.2301,4001.1,4000.2,2.49983363]
[1758804524659,0.2301,4001.1,4000.5,2.49964034]
[1758804524855,0.2301,4001.7,4000.6,0.02499625]
[1758804525088,0.2301,4002.2,4000.6,0.46299625]
[1758804525268,2.72872894,4002.2,4001.2,2.49923352]
[1758804525452,2.72872953,4002.2,4000.8,0.024995]
[1758804525659,0.2301,4002.2,4000.9,2.49943762]
[1758804525870,0.2301,4002.2,4001.7,2.49890452]
[1758804526170,0.459,4002.3,4001.6,2.49895287]
[1758804526171,3.459,4002.3,4001.6,2.49895287]
[1758804526376,2.9576139,4002.3,4001.5,2.4990374]
[1758804526574,0.459,4002.3,4002.2,0.1248]
[1758804526892,0.0002,4002.3,4002.2,0.1248]
[1758804527265,6.18686332,4002.3,4002.2,0.1248]
[1758804527494,3.6883,4002.3,4002.2,0.1248]
[1758804527805,3.0002,4002.3,4002.2,0.1248]
[1758804528110,5.49876332,4002.3,4002.2,0.1248]
[1758804528408,6.18686332,4002.3,4002.2,0.1248]
[1758804529790,3.6883,4002.3,4002.2,0.1248]
[1758804529992,3.0002,4002.3,4002.2,0.1248]
[1758804530212,0.0002,4002.3,4001.0,0.792]
[1758804530530,0.0002,4002.3,4002.2,0.1248]
[1758804530693,0.0002,4002.3,4002.2,2.62342575]
[1758804530882,0.0002,4002.3,4002.2,3.29892575]
[1758804531292,0.0002,4002.3,4002.2,0.1248]
[1758804531514,2.49876332,4002.3,4002.2,0.1248]
[1758804531715,0.6883,4002.3,4001.1,0.56663983]
[1758804531982,0.0002,4002.3,4001.6,2.4989507]
[1758804532197,0.0002,4002.3,4001.8,2.49882692]
[1758804532410,0.0002,4002.3,4001.9,0.02498813]
[1758804532612,0.0002,4002.3,4002.0,0.0249875]
[1758804532884,0.0002,4002.3,4002.2,2.49862575]
[1758804533345,0.0002,4002.3,4002.2,3.17412575]
[1758804533528,0.0002,4002.3,4002.2,0.2375]
[1758804533732,0.0002,4002.3,4002.2,2.49862575]
[1758804534015,0.0002,4002.3,4001.8,0.438]
[1758804534217,0.2303,4002.3,4001.0,3.0]
[1758804534382,0.0002,4002.3,4001.1,1.04193698]
[1758804534578,0.0002,4002.3,4001.3,3.0]
[1758804534920,0.0002,4002.3,4001.2,0.6755]
[1758804535104,2.49863497,4002.2,4001.2,0.6755]
[1758804535307,0.0002,4002.3,4001.2,0.2375]
[1758804535609,0.0002,4002.3,4001.6,2.49895721]
[1758804535806,0.0002,4002.3,4001.7,2.49892592]
[1758804535980,0.0002,4002.3,4001.2,2.49920278]
[1758804536182,0.0002,4002.3,4001.4,0.2375]
[1758804536410,0.0002,4002.3,4001.9,2.49877131]
[1758804536609,0.0002,4002.3,4001.4,1.0295]
[1758804536914,0.0002,4002.3,4002.0,2.49874957]
[1758804537327,0.0002,4002.3,4001.5,2.49906285]
[1758804537616,0.0002,4002.3,4001.8,2.49885231]
[1758804537819,0.0002,4002.3,4001.5,0.31745629]
[1758804538018,0.0002,4002.3,4001.7,2.49892288]
[1758804538217,0.0002,4002.3,4001.4,0.2375]
[1758804538218,0.0002,4002.3,4001.8,2.49886495]
[1758804538420,0.0002,4002.3,4001.4,0.2375]
[1758804538720,0.4582,4002.3,4000.8,0.438]
[1758804538934,0.2301,4002.2,4000.9,0.2375]
[1758804539135,2.49875062,4002.0,4000.9,0.2375]
[1758804539286,0.2301,4002.0,4000.9,0.2375]
[1758804539488,2.49904536,4001.6,4000.9,0.2375]
[1758804539705,2.49869455,4002.1,4001.0,0.2375]
[1758804540011,0.4582,4002.3,4001.0,0.2375]
[1758804540199,0.0002,4002.3,4001.1,1.25499312]
[1758804540534,0.0002,4002.3,4001.8,2.49886386]
[1758804540707,0.0002,4002.3,4001.2,0.82474931]
[1758804540908,0.0002,4002.3,4002.2,2.49862575]
[1758804541441,0.0002,4002.3,4002.2,6.991112]
[1758804541657,0.0002,4002.3,4002.2,7.09092575]
[1758804541795,0.0002,4002.3,4001.5,0.438]
[1758804542000,0.0002,4002.3,4001.4,0.2375]
[1758804542001,0.4628,4002.3,4001.4,0.2375]
[1758804542450,0.0002,4002.3,4002.0,2.49870564]
[1758804542598,0.0002,4002.3,4002.1,2.49868226]
[1758804542954,0.0002,4002.3,4002.2,2.49862575]
[1758804543105,0.0002,4002.3,4002.2,3.07216812]
[1758804543299,0.0002,4002.3,4002.2,3.31926812]
[1758804543600,0.0002,4002.3,4001.7,2.49889365]
[1758804543601,0.0002,4002.3,4001.7,3.0]
[1758804543803,0.7056,4002.2,4000.8,0.2471]
[1758804544150,0.7056,4002.2,4000.6,0.002]
[1758804544298,2.49930881,4001.2,4000.6,0.002]
[1758804544498,2.49881306,4001.9,4000.6,0.002]
[1758804544499,2.49956257,4000.7,4000.6,0.002]
[1758804544738,3.20493418,4001.1,4000.6,0.002]
[1758804545032,0.7056,4000.7,4000.6,0.002]
[1758804545396,17.51488957,4000.7,4000.6,0.002]
[1758804545635,9.99085057,4000.7,4000.6,0.002]
[1758804545795,8.25439057,4000.7,4000.6,0.002]
[1758804546235,14.12168257,4000.7,4000.6,0.002]
[1758804546421,10.60018657,4000.7,4000.6,0.002]
[1758804546827,3.7056,4000.7,4000.6,0.002]
[1758804546999,6.20516257,4000.7,4000.6,0.002]
[1758804547333,3.7056,4000.7,4000.6,0.002]
[1758804547535,6.20516257,4000.7,4000.6,0.002]
[1758804549703,6.20516257,4000.7,4000.1,0.002]
[1758804549704,2.49981251,4000.3,4000.1,0.002]
[1758804550026,2.499875,4000.2,4000.1,0.002]
[1758804550440,3.0,4000.2,4000.1,0.002]
[1758804550726,2.49919064,4001.3,4000.1,0.002]
[1758804550727,0.7056,4000.9,4000.1,0.002]
[1758804550911,13.77741996,4001.5,4000.1,0.6621]
[1758804551111,2.49947844,4000.9,4000.1,3.16202322]
[1758804551734,0.2255,4001.6,4000.5,2.49968544]
[1758804551935,2.72455446,4001.6,4000.8,0.1248]
[1758804552137,0.4288,4001.9,4001.4,0.1248]
[1758804552341,2.49784974,4003.5,4000.1,0.56820849]
[1758804552342,0.4288,4002.7,4001.5,0.2293]
[1758804552548,0.1248,4002.6,4001.8,0.1248]
[1758804552716,2.4986281,4002.2,4002.1,0.1248]
[1758804553107,3.1529281,4002.2,4002.1,0.1248]
[1758804553304,10.53999018,4002.1,4000.4,0.4308]
[1758804553541,2.49928498,4001.2,4000.5,0.2293]
[1758804553715,2.49906285,4001.5,4001.4,0.1248]
[1758804553907,0.6543,4001.5,4001.2,0.1248]
[1758804554104,2.49918776,4001.3,4001.2,0.1248]
[1758804554352,2.49913689,4001.4,4001.2,0.1248]
[1758804554641,3.0,4001.3,4001.2,0.1248]
[1758804555244,6.15348776,4001.3,4001.2,0.1248]
[1758804555417,2.49952893,4000.8,4000.0,0.2293]
[1758804555617,2.49952893,4000.8,4000.7,0.1248]
[1758804555894,6.15382893,4000.8,4000.7,0.1248]
[1758804556070,3.0,4000.7,3999.8,0.2293]
[1758804556375,3.0,4000.7,3999.7,0.002]
[1758804556376,2.499875,4000.2,3999.7,0.002]
[1758804556713,3.154175,4000.2,3999.7,0.002]
[1758804556912,6.154175,4000.2,3999.7,0.002]
[1758804558076,3.0,4000.2,3999.7,0.002]
[1758804558249,0.4288,4001.6,4000.2,2.49987128]
[1758804558422,0.4288,4001.6,4000.4,2.49969628]
[1758804558612,2.49890841,4001.8,4000.8,2.49944729]
[1758804558953,2.49864312,4002.2,4001.5,2.49905876]
[1758804559119,0.6553,4002.8,4001.4,0.6601]
[1758804559317,2.49837661,4002.6,4001.4,0.2293]
[1758804559512,0.6553,4002.8,4001.6,0.792]
[1758804559513,0.001,4002.8,4001.6,0.792]
[1758804559751,0.001,4002.8,4002.4,2.4984882]
[1758804560059,0.001,4002.8,4002.7,2.49831363]
[1758804560446,0.001,4002.8,4002.7,3.18339676]
[1758804560649,0.001,4002.8,4002.7,3.15841363]
[1758804560847,0.001,4002.8,4002.7,3.72409814]
[1758804561566,0.001,4002.8,4002.7,4.54108127]
[1758804561888,0.001,4002.8,4002.7,7.54108127]
[1758804562091,0.001,4002.8,4002.7,7.51609814]
[1758804562307,0.001,4002.8,4002.7,5.01778451]
[1758804562449,0.001,4002.8,4002.7,7.51609814]
[1758804562650,0.001,4002.8,4002.7,3.72409814]
[1758804563649,0.001,4002.8,4002.7,1.22578451]
[1758804563969,0.001,4002.8,4002.7,3.95041363]
[1758804564174,0.001,4002.8,4002.7,3.97539676]
[1758804564348,0.001,4002.8,4002.7,3.95041363]
[1758804564681,0.001,4002.8,4002.7,6.95041363]
[1758804565059,13.35146492,4006.0,4002.7,6.95041363]
[1758804565060,0.2255,4005.7,4003.1,3.290064]
[1758804565367,0.2255,4005.7,4004.0,2.49744686]
[1758804565692,0.2255,4005.7,4004.6,2.49707314]
[1758804565893,2.49650489,4005.6,4004.7,2.49706593]
[1758804566265,2.49650489,4005.6,4005.5,0.1248]
[1758804566797,0.2255,4006.0,4004.7,0.2293]
[1758804567000,2.49661943,4005.5,4004.4,0.4308]
[1758804567198,2.49640776,4005.8,4004.9,2.49692531]
[1758804567402,5.4960294,4006.4,4005.3,2.49669153]
[1758804567596,0.6543,4006.5,4004.7,0.792]
[1758804567796,2.49645615,4005.7,4004.6,0.2293]
[1758804568097,3.0,4006.4,4005.6,2.49645662]
[1758804568299,0.6543,4006.5,4005.2,0.2293]
[1758804568502,0.6543,4007.1,4005.3,0.4308]
[1758804568666,2.49587126,4006.7,4005.4,0.2293]
[1758804568867,0.6543,4006.6,4004.6,3.0]
[1758804569082,3.0,4006.3,4004.8,0.792]
[1758804569423,3.0,4006.3,4004.3,3.0]
[1758804569424,2.4966433,4005.4,4004.2,0.2293]
[1758804569567,2.49661528,4005.5,4004.3,2.49730517]
[1758804569762,0.6543,4005.5,4004.2,0.2293]
[1758804570016,0.2255,4006.0,4005.0,2.49686844]
[1758804570215,2.72176029,4006.0,4005.0,2.49686914]
[1758804570419,0.2255,4006.0,4005.1,2.49681201]
[1758804570702,3.2255,4006.0,4005.2,0.02496754]
[1758804570948,0.6543,4006.7,4005.1,0.792]
[1758804571199,2.49602596,4006.4,4005.6,2.4964798]
[1758804571378,3.0,4006.6,4005.2,0.792]
[1758804571578,0.6543,4006.7,4006.0,2.49620426]
[1758804571898,2.49569578,4006.9,4006.1,2.49615403]
[1758804572063,2.49557704,4007.1,4006.2,2.49612048]
[1758804572267,2.49570126,4006.9,4006.1,2.49613252]
[1758804572466,2.49558075,4007.1,4006.2,2.49612294]
[1758804572688,3.0,4007.2,4005.7,0.2293]
[1758804572886,3.0,4007.2,4000.7,3.55122278]
[1758804572887,3.0,4006.9,4005.3,0.2293]
[1758804573097,0.6543,4007.0,4005.0,0.4308]
[1758804573402,3.0,4006.8,4005.3,0.792]
[1758804573599,0.2255,4006.9,4005.4,2.52158983]
[1758804573769,0.2255,4006.9,4006.1,2.49619173]
[1758804574098,2.72121508,4006.9,4006.1,2.4961387]
[1758804574289,2.49589207,4006.6,4005.8,2.49633427]
[1758804574663,3.0,4006.7,4005.7,0.02496442]
[1758804574664,2.49638024,4005.8,4005.7,0.02496442]
[1758804574867,0.6543,4006.5,4004.7,0.2293]
[1758804575088,2.49632058,4005.9,4004.7,0.2293]
[1758804575276,0.6543,4006.0,4004.7,0.2293]
[1758804575600,0.6543,4006.0,4004.9,2.49694124]
[1758804575800,2.49644893,4005.7,4004.7,2.72632885]
[1758804575967,3.0,4005.9,4005.1,2.49681411]
[1758804576173,2.88725411,4006.9,4004.8,2.49700359]
[1758804576174,0.2255,4006.5,4005.2,0.02496754]
[1758804576502,3.4288,4006.4,4004.4,0.792]
[1758804576801,3.4288,4006.4,4004.0,2.49747246]
[1758804576802,3.0,4006.4,4005.5,2.49651897]
[1758804577002,0.2255,4006.6,4004.9,0.2293]
[1758804577003,0.4288,4006.5,4004.9,0.2293]
[1758804577222,2.77011518,4010.0,4005.0,1.2228]
[1758804577504,0.39143542,4007.5,4007.2,2.49550691]
[1758804577710,0.39143542,4007.5,4006.4,2.49594575]
[1758804577711,3.4288,4008.3,4006.9,2.49569492]
[1758804577871,2.49488548,4008.2,4007.0,2.49562569]
[1758804578203,2.49513486,4007.8,4006.8,0.2293]
[1758804578368,0.6543,4008.1,4006.1,0.2293]
[1758804578601,2.49512125,4007.9,4007.0,2.49558697]
[1758804578801,2.49515232,4007.8,4007.0,2.49558697]
[1758804578996,0.6543,4008.0,4006.4,0.2293]
[1758804579210,3.14931543,4008.0,4007.2,2.495499]
[1758804579409,2.49507573,4007.9,4007.2,2.495499]
[1758804579610,0.6543,4008.0,4003.7,6.63863413]
[1758804579811,0.6543,4008.0,4007.2,2.49545552]
[1758804580130,2.49508523,4007.9,4007.1,2.49556557]
[1758804580334,0.6543,4008.0,4007.4,2.49535762]
[1758804580534,3.0,4007.9,4007.3,2.49544393]
[1758804580696,2.49514611,4007.8,4007.0,2.49557958]
[1758804581103,0.4288,4008.0,4006.8,2.7250446]
[1758804581317,2.49511897,4007.9,4007.1,2.49556685]
[1758804582008,5.4950842,4007.9,4007.1,2.49553328]
[1758804582244,3.2272,4007.9,4006.6,0.792]
[1758804582409,2.49299271,4011.3,4006.4,0.792]
[1758804582410,0.467,4008.8,4007.4,0.792]
[1758804582615,0.467,4008.8,4007.6,0.792]
[1758804582806,0.467,4008.8,4007.7,2.49519674]
[1758804583001,0.2272,4008.9,4007.7,2.49519674]
[1758804583002,0.2272,4008.9,4008.4,2.49469912]
[1758804583232,2.4941991,4009.4,4008.1,2.49488572]
[1758804583413,2.4941991,4009.4,4008.0,0.2359]
[1758804583414,3.0,4009.4,4008.0,0.2359]
[1758804583614,2.4945372,4008.8,4007.3,0.792]
[1758804583836,2.49506737,4008.0,4006.5,0.792]
[1758804584036,3.0,4008.9,4006.7,0.2359]
[1758804584037,2.49533474,4007.5,4006.7,0.2359]
[1758804584210,0.6942,4007.9,4005.0,0.49447468]
[1758804584211,0.6942,4007.9,4006.2,0.2359]
[1758804584413,0.6942,4007.9,4006.5,2.49589317]
[1758804584627,2.49550545,4007.3,4006.5,2.49589317]
[1758804584934,3.0,4007.8,4007.0,2.49561242]
[1758804585100,5.49513448,4007.8,4006.9,2.49567398]
[1758804585302,3.0,4007.8,4007.1,2.49551606]
[1758804585506,3.0,4007.8,4007.0,2.52057469]
[1758804585731,0.467,4008.0,4006.9,2.49568471]
[1758804585934,0.467,4008.0,4005.7,0.792]
[1758804586141,0.467,4008.0,4005.4,3.0]
[1758804586142,0.6942,4007.9,4006.2,0.2359]
[1758804586646,3.0,4007.7,4006.0,0.4302]
[1758804586845,0.2272,4007.6,4006.1,0.26086193]
[1758804587046,0.2272,4007.6,4007.3,0.124]
[1758804587247,0.2272,4007.6,4006.8,2.49571424]
[1758804587248,3.18947539,4007.6,4007.5,0.124]
[1758804587449,2.49546939,4007.3,4006.1,0.2359]
[1758804587654,0.124,4007.9,4007.3,0.124]